Cogmind - Beta 14 @@@ ROGUE MODE // 2024.10.06 @ 18:47:45 Player: N.W.L Result: Self-destructed Performance ------------- Evolutions (4) 2000 Regions Visited (8) 1600 Robots Destroyed (52) 260 Value Destroyed (1812) 1812 Prototype IDs (23) 460 Alien Tech Used (0) 0 Bonus (427) 427 TOTAL SCORE: 6559 Bonus ------- High Alert Combat Kills 13 Entered Garrisons 200 Registered with UFD 300 Friendly Fire -86 Cogmind --------- Core Integrity 328/850 Matter 88/300 Energy 12/100 System Corruption 9% Temperature Cool (0) Movement Treading (160) Location -6/Garrison Parts ------- > --- POWER (1) -------- (None) > --- PROPULSION (5) --- Light Treads Light Treads Light Treads > --- UTILITY (7) ------ Medium Storage Unit Improved Light Armor Plating > --- WEAPON (2) ------- LU-1G1's Laser Shovel > --- INVENTORY (10) --- Centrium Heavy Treads Matter Neutralizer Improved KE Penetrator Heavy Rocket Launcher System Spiker (6) Multitool DRS Beacon (Ready) Peak State ------------ > --- POWER ------------ Light Fission Core > --- PROPULSION ------- Light Treads Centrium Heavy Treads Armored Huge Wheel > --- UTILITY ---------- Medium Storage Unit Machine Analyzer Advanced Sensor Array Matter Filter Improved Light Armor Plating Improved System Restoration Module Drone Bay > --- WEAPON ----------- Improved Heavy Machine Gun Improved Heavy Machine Gun > --- INVENTORY -------- Improved Trap Extractor Matter Neutralizer Improved KE Penetrator Heavy Rocket Launcher System Spiker LU-1G1's Laser Shovel Multitool Makeshift Sword DRS Beacon [Rating: 75] Favorites ----------- Power Nuclear Core Engine Light Ion Engine Power Core Nuclear Core Propulsion Spiked Treads Treads Spiked Treads Leg Aluminum Leg Wheel Subdweller Monowheel Hover Unit Gravmag System Flight Unit Cesium-ion Thruster Utility Medium Storage Unit Device Advanced Sensor Array Storage Medium Storage Unit Processor Advanced Visual Processing Unit Protection Scrap Shield Weapon Subdweller Machine Gun Energy Gun Subdweller Laser Energy Cannon Subdweller Beam Cannon Ballistic Gun Subdweller Machine Gun Launcher Heavy Rocket Launcher Special Weapon LU-1G1's Laser Shovel Slashing Weapon Makeshift Sword Build | -11 -10 -10 -8 -8 -6 -6 -6 -6 ------- Run | Yrd Mat Sub Rec Scr Fac Was Fac Gar Slots Evolved 8 | . . . . . 8 . . . Power . | . . . . . . . . . Propulsion 3 | . . . . . 3 . . . Utility 5 | . . . . . 5 . . . Weapon . | . . . . . . . . . Parts Attached 108 | . . 28 3 12 17 2 36 10 Power 10 | . . 5 1 . 2 . 2 . Engine 7 | . . 5 . . . . 2 . Core 3 | . . . 1 . 2 . . . Reactor . | . . . . . . . . . Propulsion 24 | . . 8 . 4 2 . 7 3 Treads 11 | . . 4 . . . . 4 3 Leg 1 | . . 1 . . . . . . Wheel 8 | . . 3 . . 2 . 3 . Hover 2 | . . . . 2 . . . . Flight 2 | . . . . 2 . . . . Utility 34 | . . 2 1 6 9 . 15 1 Device 21 | . . 1 . 3 5 . 12 . Storage 4 | . . . 1 1 2 . . . Processor 3 | . . . . 2 . . 1 . Hackware . | . . . . . . . . . Protection 6 | . . 1 . . 2 . 2 1 Artifact . | . . . . . . . . . Weapon 40 | . . 13 1 2 4 2 12 6 Energy Gun 3 | . . 3 . . . . . . Energy Cannon 5 | . . 2 . . 1 . 2 . Ballistic Gun 14 | . . 4 1 . . 1 6 2 Ballistic Cannon . | . . . . . . . . . Launcher 4 | . . 1 . . 1 . 1 1 Special Weapon 5 | . . . . 1 . 1 1 2 Impact Weapon . | . . . . . . . . . Slashing Weapon 9 | . . 3 . 1 2 . 2 1 Piercing Weapon . | . . . . . . . . . Special Melee Weapon . | . . . . . . . . . Unidentified Prototypes 6 | . . . . 1 1 1 3 . Parts Lost 22 | . . 5 . . . . 7 10 Power 3 | . . 2 . . . . . 1 Propulsion 7 | . . 3 . . . . 1 3 Utility 9 | . . . . . . . 6 3 Weapon 3 | . . . . . . . . 3 Highest Loss Streak 5 | . . 2 . . . . 2 5 To Critical Strikes . | . . . . . . . . . Average Slot Usage (%) 83 | . 85 87 85 82 71 79 80 54 Engine 7 | . 14 13 3 . . . 2 2 Core 4 | . . . 10 12 5 6 2 . Treads 13 | . . 18 14 12 . . 5 12 Leg 1 | . 28 1 . . . . . . Wheel 9 | . . 7 14 12 12 13 10 6 Device 6 | . . 2 . . 15 20 26 10 Storage 7 | . 14 3 11 13 5 6 6 6 Processor 1 | . . . . 1 13 13 6 2 Protection 5 | . . 10 2 . 5 6 3 1 Energy Gun 2 | . . 5 . . . . . . Energy Cannon 2 | . . 5 . . . . . 3 Ballistic Gun 15 | . 28 13 20 24 . . 10 3 Slashing Weapon 2 | . . 3 7 . 9 6 1 2 Peak Build Rating 75 | . 6 18 16 24 60 62 75 60 Average Rating 22 | . 6 13 15 15 51 61 61 38 On Entrance 27 | 6 6 6 15 15 21 60 62 60 Naked Turns . | . . . . . . . . . Heaviest Build 54 | 13 13 35 27 24 34 34 51 54 Greatest Support 80 | 20 20 40 20 20 56 56 80 60 Greatest Overweight (x) 3 | . . 1 1 1 . . 2 3 Average Overweight (x) . | . . . . . . . . . Largest Inventory Capacity 10 | . 8 8 10 10 10 10 10 10 Average Capacity 7 | . 8 5 9 9 9 10 10 10 Most Carried 10 | . 6 8 10 10 10 10 10 10 Average Carried 7 | . 6 5 8 8 6 9 9 9 Final Capacity 10 | 8 8 5 10 5 10 10 10 10 Final Carried 10 | 6 6 4 10 5 10 10 10 8 Class Distribution -------------------- 54% | Mutant 34% | Subdweller-Mutant 4% | Scavenger-Skirmisher Dominant Class ---------------- Mutant | -10/Materials Subdweller-Mutant | -10/Subcaves Mutant | -8/Recycling Mutant | -8/Scraptown Mutant | -6/Factory Mutant | -6/Waste Mutant | -6/Factory Scavenger-Mutant | -6/Garrison Resources | -11 -10 -10 -8 -8 -6 -6 -6 -6 ----------- Run | Yrd Mat Sub Rec Scr Fac Was Fac Gar Matter Collected 1901 | 195 21 452 94 92 198 . 654 195 Remotely . | . . . . . . . . . Salvage Created 2368 | . 41 728 418 . 286 . 686 209 Parts 125 | . 7 43 14 . 8 . 40 13 Haulers Intercepted 1 | . . . . . . . 1 . Recyclers Shooed 1 | . . . . . 1 . . . Parts Field Recycled . | . . . . . . . . . Retrieved Matter . | . . . . . . . . . Parts Self-Destructed 30 | . . 30 . . . . . . Prevented . | . . . . . . . . . Kills | -11 -10 -10 -8 -8 -6 -6 -6 -6 ------- Run | Yrd Mat Sub Rec Scr Fac Was Fac Gar Combat Hostiles Destroyed 37 | . 3 15 1 . . . 11 7 Melee 2 | . . . . . . . 1 1 Guns 26 | . 3 12 1 . . . 10 . Cannons 4 | . . 2 . . . . . 2 AOE 5 | . . 1 . . . . . 4 Classes Destroyed 15 | . 1 3 2 . 2 . 6 1 Worker 4 | . . . . . 1 . 3 . Tunneler 1 | . . . . . 1 . . . Hauler 1 | . . . . . . . 1 . Recycler 7 | . . . 5 . 2 . . . Watcher 2 | . . . . . . . 2 . Swarmer 5 | . 3 2 . . . . . . Cutter 4 | . . . . . . . . 4 Grunt 3 | . . 2 . . . . 1 . Brawler 1 | . . . . . . . 1 . Duelist 1 | . . . . . . . 1 . Sentry 8 | . . . 1 . . . 4 3 Hunter 1 | . . . . . . . 1 . Programmer 3 | . . . . . . . 3 . Artisan 1 | . . 1 . . . . . . Subdweller 11 | . . 11 . . . . . . Best Kill Streak 5 | . 2 2 5 . 3 . 3 4 Combat Bots Only 4 | . 2 2 1 . . . 3 4 Max Kills in Single Turn 2 | . 1 1 1 . 1 . 1 2 Gunslinging . | . . . . . . . . . Exploded 2 | . . 1 . . . . . 2 Melee 1 | . . . . . . . 1 1 Uniques/NPCs Destroyed . | . . . . . . . . . Combat | -11 -10 -10 -8 -8 -6 -6 -6 -6 -------- Run | Yrd Mat Sub Rec Scr Fac Was Fac Gar Hostile Shots Fired 518 | . 11 78 16 8 . . 210 195 Missed 182 | . 5 22 5 4 . . 73 73 Damage Taken 4634 | . 54 990 158 56 . . 1737 1639 Core 717 | . . 156 14 25 . . 227 295 Absorbed by Shields . | . . . . . . . . . Redirected to Shielding 44 | . . . . . . . 44 . Core Remaining (%) 61 | 100 . . . 22 . . . . Volleys Fired 210 | . 8 84 9 . 2 1 82 24 Largest 2 | . 2 2 2 . 1 1 2 2 Hottest 110 | . 40 110 58 . 85 60 105 45 Shots Fired 371 | . 16 146 18 . 2 1 153 35 Gun 312 | . 16 121 18 . . . 145 12 Cannon 52 | . . 24 . . 2 . 8 18 Launcher 6 | . . 1 . . . . . 5 Special 1 | . . . . . . 1 . . Kinetic 273 | . 16 82 18 . . . 145 12 Thermal 92 | . . 63 . . 2 1 8 18 Explosive 6 | . . 1 . . . . . 5 Electromagnetic . | . . . . . . . . . Robot Hit Streak 26 | . 3 26 14 . 3 . 20 11 Robot Miss Streak 5 | . 5 4 2 . . . 4 1 Penetration Max . | . . . . . . . . . Secondary Targets 2 | . . 2 . . . . . . Max Gunslinging Chain 1 | . . 1 . . . . . . Shots Hit Robots 247 | . 5 81 19 . 11 . 101 30 Core Hits 100 | . 4 32 4 . 3 . 45 12 Critical Kills 1 | . . . . . . . 1 . Critical Parts Destroyed 1 | . . 1 . . . . . . Critical Strikes 4 | . . 1 . . . . 2 1 Destroy 2 | . . 1 . . . . 1 . Sever 2 | . . . . . . . 1 1 Melee Attacks 78 | . . 25 5 2 17 . 22 7 Impact . | . . . . . . . . . Slashing 78 | . . 25 5 2 17 . 22 7 Piercing . | . . . . . . . . . Sneak Attacks 11 | . . 1 5 . 5 . . . Combat Hostiles . | . . . . . . . . . Follow-up Attacks 2 | . . . . . . . 2 . Damage Inflicted 6560 | . 49 1646 626 . 615 . 2474 1150 Guns 3847 | . 49 1220 266 . . . 2066 246 Cannons 794 | . . 304 . . 61 . 35 394 Explosions 391 | . . 56 . . . . . 335 Melee 1526 | . . 66 360 . 554 . 373 173 Ramming 2 | . . . . . . . . 2 Kinetic 3520 | . 49 893 266 . . . 2066 246 Thermal 1121 | . . 631 . . 61 . 35 394 Explosive 391 | . . 56 . . . . . 335 Electromagnetic . | . . . . . . . . . Impact . | . . . . . . . . . Slashing 1526 | . . 66 360 . 554 . 373 173 Piercing . | . . . . . . . . . Highest Corruption 9 | . . . . . . 6 6 9 Average Corruption 3 | . . . . . . 6 2 7 Corruption Purged 8 | . . . . . . . 8 . Corruption Blocked . | . . . . . . . . . Effects 21 | . . . . . . 2 13 6 Message Errors 7 | . . . . . . 1 4 2 Matter Fused 6 | . . . . . . 1 3 2 Heat Flow Errors 1 | . . . . . . . 1 . Energy Discharges 1 | . . . . . . . . 1 Data Loss (minor) 3 | . . . . . . . 2 1 Data Loss (major) 1 | . . . . . . . 1 . Misfires 1 | . . . . . . . 1 . Weapon Failures 1 | . . . . . . . 1 . Overload Shots . | . . . . . . . . . Overflow Damage 314 | . . . 108 . 179 . . 27 Projectiles . | . . . . . . . . . Explosions 27 | . . . . . . . . 27 Melee 287 | . . . 108 . 179 . . . Knockbacks . | . . . . . . . . . Impact . | . . . . . . . . . Kinetic . | . . . . . . . . . Secondary . | . . . . . . . . . Self-Inflicted Damage 100 | . . . . . . . . 100 Shots 2 | . . . . . . . . 2 Rammed 2 | . . . . . . . . 2 Targets Rammed 2 | . . . . . . . . 2 Kicked . | . . . . . . . . . Crushed . | . . . . . . . . . Highest Temperature 365 | . . 1 126 . 52 . 365 48 Average Temperature 87 | . . 1 62 . 30 . 145 14 Received Heat Transfer 834 | . . 201 54 . . . 357 222 Effects 1 | . . . . . . . 1 . Shutdowns 1 | . . . . . . . 1 . Siege Activations . | . . . . . . . . . Robots Corrupted . | . . . . . . . . . Combat Hostiles . | . . . . . . . . . Parts Fried . | . . . . . . . . . Impact Corruptions . | . . . . . . . . . Robots Melted . | . . . . . . . . . Combat Hostiles . | . . . . . . . . . Parts Melted 4 | . . 3 1 . . . . . Heat Transferred 1717 | . . 1088 . . 74 . 37 518 Parts Sabotaged . | . . . . . . . . . Parts Stolen . | . . . . . . . . . Parts Stripped . | . . . . . . . . . Power Chain Reactions . | . . . . . . . . . Alert | -11 -10 -10 -8 -8 -6 -6 -6 -6 ------- Run | Yrd Mat Sub Rec Scr Fac Was Fac Gar Peak Influence 401 | . 116 . 158 . 74 49 216 401 Initial 151 | . . . 133 . . 25 34 151 Average 106 | . 93 . 74 . 43 40 106 317 Maximum Alert Level 2 | . . . . . . . 1 2 Low Security (%) 85 | . 100 . 100 . 100 100 83 11 Level 1 14 | . . . . . . . 16 87 Level 2 . | . . . . . . . . . Level 3 . | . . . . . . . . . Level 4 . | . . . . . . . . . Level 5 . | . . . . . . . . . High Security . | . . . . . . . . . Max Security . | . . . . . . . . . Squads Dispatched 7 | . 2 . . . . . 5 . Investigation 1 | . . . . . . . 1 . Extermination 2 | . . . . . . . 2 . Reinforcement 4 | . 2 . . . . . 2 . Assault . | . . . . . . . . . Garrison . | . . . . . . . . . Intercept . | . . . . . . . . . Searches Triggered . | . . . . . . . . . Construction Impeded . | . . . . . . . . . Haulers Reinforced . | . . . . . . . . . Active Scanning Responses . | . . . . . . . . . Cargo Convoy Interrupts . | . . . . . . . . . Stealth | -11 -10 -10 -8 -8 -6 -6 -6 -6 --------- Run | Yrd Mat Sub Rec Scr Fac Was Fac Gar Distress Signals . | . . . . . . . . . Communications Jammed . | . . . . . . . . . Distress Signals . | . . . . . . . . . Times Spotted 97 | . 6 32 1 10 4 3 28 13 Peak Tracking Total 14 | . 3 2 1 14 1 3 5 6 Tactical Retreats 18 | . 1 11 . . . . 3 3 Traps | -11 -10 -10 -8 -8 -6 -6 -6 -6 ------- Run | Yrd Mat Sub Rec Scr Fac Was Fac Gar Traps Triggered 4 | . . 1 . . 1 . 2 . Indirectly . | . . . . . . . . . Trap Hack Attempts . | . . . . . . . . . Triggered . | . . . . . . . . . Disarmed . | . . . . . . . . . Reprogrammed . | . . . . . . . . . Reused . | . . . . . . . . . Traps Extracted . | . . . . . . . . . Installed . | . . . . . . . . . Triggered . | . . . . . . . . . Machines | -11 -10 -10 -8 -8 -6 -6 -6 -6 ---------- Run | Yrd Mat Sub Rec Scr Fac Was Fac Gar Machines Disabled 12 | . . 3 . 5 1 . 1 2 Max in Single Turn 2 | . . 2 . 1 1 . 1 1 Garrison Relay 1 | . . . . . . . . 1 Machines Repaired . | . . . . . . . . . Machines Dismantled . | . . . . . . . . . Machines Sabotaged . | . . . . . . . . . Overloaded Fab Kills . | . . . . . . . . . Hacking | -11 -10 -10 -8 -8 -6 -6 -6 -6 --------- Run | Yrd Mat Sub Rec Scr Fac Was Fac Gar Machines Accessed 14 | . . 2 . 4 2 . 6 . Terminals 3 | . . . . . 1 . 2 . Fabricators 2 | . . . . . 1 . 1 . Repair Stations 1 | . . . . . . . 1 . Recycling Units 1 | . . . . . . . 1 . Scanalyzers . | . . . . . . . . . Garrison Access 1 | . . . . . . . 1 . Total Hacks 28 | . . 4 . 9 4 . 11 . Successful 18 | . . 4 . 9 1 . 4 . Failed 10 | . . . . . 3 . 7 . Catastrophic 2 | . . . . . . . 2 . Database Lockouts . | . . . . . . . . . Manual 7 | . . . . . 1 . 6 . Terminals 4 | . . . . . 1 . 3 . Fabricators 5 | . . . . . 3 . 2 . Repair Stations 3 | . . . . . . . 3 . Recycling Units 2 | . . . . . . . 2 . Scanalyzers . | . . . . . . . . . Garrison Access 1 | . . . . . . . 1 . Terminal Hacks 14 | . . 4 . 9 . . 1 . Record 11 | . . 3 . 8 . . . . Locate Traps 1 | . . . . . . . 1 . Derelict Proto ID Bank 2 | . . 1 . 1 . . . . Fabricator Hacks 1 | . . . . . 1 . . . Network Status 1 | . . . . . 1 . . . Repair Station Hacks . | . . . . . . . . . Recycling Unit Hacks . | . . . . . . . . . Scanalyzer . | . . . . . . . . . Garrison Access Hacks 1 | . . . . . . . 1 . Unlock Access 1 | . . . . . . . 1 . Unauthorized Hacks 1 | . . . . . . . 1 . Terminals . | . . . . . . . . . Fabricators 1 | . . . . . . . 1 . Liberate 1 | . . . . . . . 1 . Repair Stations . | . . . . . . . . . Recycling Units . | . . . . . . . . . Scanalyzers . | . . . . . . . . . Garrison Access . | . . . . . . . . . Data Cores Recovered . | . . . . . . . . . Used . | . . . . . . . . . Hacking Detections 7 | . . . . . 2 . 5 . Full Trace Events 1 | . . . . . . . 1 . Feedback Events 1 | . . . . . . . 1 . Corruption 1 | . . . . . . . 1 . Feedback Blocked . | . . . . . . . . . Robot Schematics Acquired . | . . . . . . . . . Robots Built . | . . . . . . . . . Authchips . | . . . . . . . . . Time . | . . . . . . . . . Total Robot Build Rating . | . . . . . . . . . Part Schematics Acquired . | . . . . . . . . . Parts Built . | . . . . . . . . . Authchips . | . . . . . . . . . Time . | . . . . . . . . . Total Part Build Rating . | . . . . . . . . . Parts Repaired . | . . . . . . . . . Time . | . . . . . . . . . Parts Recycled . | . . . . . . . . . Recycled Matter . | . . . . . . . . . Retrieved Matter . | . . . . . . . . . Retrieved Components . | . . . . . . . . . Parts Scanalyzed . | . . . . . . . . . Part Schematics Acquired . | . . . . . . . . . Parts Damaged . | . . . . . . . . . Bothacking | -11 -10 -10 -8 -8 -6 -6 -6 -6 ------------ Run | Yrd Mat Sub Rec Scr Fac Was Fac Gar Used RIF Installer . | . . . . . . . . . Robots Hacked . | . . . . . . . . . Non-combat . | . . . . . . . . . Combat . | . . . . . . . . . Robot Hacks Applied . | . . . . . . . . . Relay Couplers Released 5 | . . . . . . . . 5 Machine Destruction 5 | . . . . . . . . 5 Fabnet Peak Effective % . | . . . . . . . . . Robots Rewired . | . . . . . . . . . Allies Hacked . | . . . . . . . . . Hacks Repelled . | . . . . . . . . . Allies | -11 -10 -10 -8 -8 -6 -6 -6 -6 -------- Run | Yrd Mat Sub Rec Scr Fac Was Fac Gar Total Allies . | . . . . . . . . . Largest Group . | . . . . . . . . . Highest-Rated Group . | . . . . . . . . . Highest-Rated Ally . | . . . . . . . . . Total Orders 2 | . . . . . 2 . . . EXPLORE 1 | . . . . . 1 . . . RETURN 1 | . . . . . 1 . . . Ally Attacks . | . . . . . . . . . Total Damage . | . . . . . . . . . Kills . | . . . . . . . . . Allies Corrupted . | . . . . . . . . . Allies Melted . | . . . . . . . . . Intel | -11 -10 -10 -8 -8 -6 -6 -6 -6 ------- Run | Yrd Mat Sub Rec Scr Fac Was Fac Gar Robot Analysis Total . | . . . . . . . . . Derelict Logs Recovered 1 | . . 1 . . . . . . Drone Launches 1 | . . . . . 1 . . . Drone Recoveries 1 | . . . . . 1 . . . Exploration | -11 -10 -10 -8 -8 -6 -6 -6 -6 ------------- Run | Yrd Mat Sub Rec Scr Fac Was Fac Gar Turns Passed 11075 | . 448 4970 873 2531 379 94 1470 310 Spaces Moved 5530 | 1 60 2327 334 1426 320 82 823 157 Core 1 | . . . . . . . . 1 Treads 3063 | . . 1817 334 846 . . 18 48 Legs 356 | 1 60 295 . . . . . . Wheels 1489 | . . 215 . . 279 82 805 108 Hover 354 | . . . . 354 . . . . Flight 267 | . . . . 226 41 . . . Fastest Speed 29 | 120 120 120 160 29 32 100 93 100 Average Speed 168 | 120 120 192 247 173 91 100 105 123 Slowest Speed 320 | 120 120 260 260 260 100 100 320 200 Overloaded Moves 2 | . . . . 2 . . . . Propulsion Burnouts . | . . . . . . . . . Robots Hopped . | . . . . . . . . . Cave-ins Triggered 2 | . . . . . . . . 2 Exploration Rate (%) 45 | 2 24 98 73 72 13 75 33 23 Regions Visited 8 Branch Regions 3 Pre-discovered Areas . | . . . . . . . . . Known Exits Taken 1 | . . . . . . . 1 . Unknown Exits Taken 5 | 1 1 1 1 1 . . . . Scrap Searched 13 | . . 10 . 3 . . . . Spaces Dug 94 | . . 4 . 15 9 22 19 25 Terrain Destroyed 150 | . . 10 . 13 9 16 22 80 Melee 20 | . . 3 . . 8 . 9 . Projectile 6 | . . 2 . . . . 4 . AOE 76 | . . 5 . . . . . 71 Terrain Rammed . | . . . . . . . . . Walls Destroyed . | . . . . . . . . . Machines Disabled . | . . . . . . . . . Actions | -11 -10 -10 -8 -8 -6 -6 -6 -6 --------- Run | Yrd Mat Sub Rec Scr Fac Was Fac Gar Total 6890 | . 421 2644 359 1489 385 91 1270 231 Wait 834 | . 354 145 4 21 12 1 269 28 Move 5522 | . 59 2326 333 1425 320 81 822 156 Hop . | . . . . . . . . . Pick Up 36 | . . 12 4 9 7 2 2 . Fast Attach 56 | . . 9 1 7 9 1 24 5 Attach 17 | . . 4 . 5 4 . 2 2 Detach 9 | . . 1 . 1 4 . 3 . Swap 36 | . . 15 2 . 4 1 10 4 Drop 72 | . . 20 1 19 6 4 20 2 Fire 210 | . 8 84 9 . 2 1 82 24 Melee 76 | . . 25 5 2 17 . 20 7 Ram 1 | . . . . . . . . 1 Kick . | . . . . . . . . . Crush 1 | . . . . . . . . 1 Escape Stasis 17 | . . . . . . . 16 1 Rewire . | . . . . . . . . . Trap . | . . . . . . . . . Miscellaneous 3 | . . 3 . . . . . . Route ------- -11/Scrapyard -10/Materials (discovered 2 exits: [*Min] / *Sub) -10/Subcaves (discovered 3 exits: [*Mat x2] / [*Rec]) -8/Recycling -8/Scraptown -6/Factory -6/Waste -6/Factory (discovered 2 exits: [*Fac] / Gar) -6/Garrison History --------- Turn | Location | Event 1 | -11/Scrapyard | Discovered new exit (range 0) 1 | -11/Scrapyard | Entered Materials 73 | -10/Materials | Discovered new exit (range 11) 305 | -10/Materials | Build established: Mutant 424 | -10/Materials | Discovered new exit (range 8) 449 | -10/Materials | Entered Subcaves 729 | -10/Subcaves | Shifting Twisted Machinery released Sub. Laser 748 | -10/Subcaves | Shifting Twisted Machinery released Battle Cannon 985 | -10/Subcaves | Learned 8 Materials zone layouts 1437 | -10/Subcaves | Core integrity fell below 50% 1473 | -10/Subcaves | Discovered new exit (range 8) 1965 | -10/Subcaves | Shifting Twisted Machinery released Sub. Power Source 1977 | -10/Subcaves | Shifting Twisted Machinery released Sub. Monowheel 2001 | -10/Subcaves | Build established: Subdweller-Mutant 2144 | -10/Subcaves | Discovered new exit (range 16) 2149 | -10/Subcaves | Shifting Twisted Machinery released Sub. Optics 2157 | -10/Subcaves | Shifting Twisted Machinery released Battle Rifle 2746 | -10/Subcaves | Discovered new exit (range 10) 2786 | -10/Subcaves | Ambushed by Subdwellers from Twisted Machinery 3389 | -10/Subcaves | Visited 4L-MR0's lab 3413 | -10/Subcaves | Found Arachnoskeleton 3641 | -10/Subcaves | Visited Clippyterm 3649 | -10/Subcaves | Learned Research machine intel 5419 | -10/Subcaves | Entered Recycling 5856 | -8/Recycling | Build established: Mutant 6227 | -8/Recycling | Scanned before Scraplab entrance 6264 | -8/Recycling | Entered Scraplab 6285 | -8/Recycling | Discovered new exit (range 3) 6292 | -8/Recycling | Entered Scraptown 6581 | -8/Scraptown | Visited UFD Registry 6581 | -8/Scraptown | Registered with UFD as "Bullethead" 6667 | -8/Scraptown | Visited Science Testing Area 6745 | -8/Scraptown | Visited Abandonware Association 6820 | -8/Scraptown | Learned abandonware demo "HACKBUD.EXE" 6820 | -8/Scraptown | Learned abandonware demo "POISON.EXE" 6909 | -8/Scraptown | Visited Science Guys 7062 | -8/Scraptown | Visited Scrapoid Pod Storage 7109 | -8/Scraptown | Visited Derelict Rescue Squad 7125 | -8/Scraptown | Found DRS Beacon 7199 | -8/Scraptown | Visited Supply Room 7269 | -8/Scraptown | Delivered Scrap Shield to a Scientist 7503 | -8/Scraptown | Visited Shadow of the Wyrm 7526 | -8/Scraptown | Visited Symbiants 7610 | -8/Scraptown | Visited Spacefarers 7719 | -8/Scraptown | Visited Cyclists 7737 | -8/Scraptown | Entered Cyclist Reading Room 7989 | -8/Scraptown | Visited Awakened 8575 | -8/Scraptown | Found Scrapoid Pod 8599 | -8/Scraptown | Visited LU-1G1's Boring Crew 8777 | -8/Scraptown | Attacked by Scraptown defenders 8782 | -8/Scraptown | Found Prototype Special Weapon 8782 | -8/Scraptown | Identified LU-1G1's Laser Shovel 8816 | -8/Scraptown | Found Prototype Special Weapon 8821 | -8/Scraptown | Identified System Spiker 8821 | -8/Scraptown | Discovered new exit (range 4) 8823 | -8/Scraptown | Entered Factory 8823 | -6/Factory | Evolved 8 slots: Propulsion x3, Utility x5 9202 | -6/Factory | Sucked down chute 9202 | -6/Factory | Entered Waste 9213 | -6/Waste | Spotted C-40 Crusher 9217 | -6/Waste | EMP discharged 9226 | -6/Waste | Spotted C-40 Crusher 9226 | -6/Waste | Spotted C-40 Crusher 9283 | -6/Waste | Discovered new exit (range 12) 9296 | -6/Waste | Entered Factory 10024 | -6/Factory | Discovered new exit (range 7) 10575 | -6/Factory | Found Launcher Loader 10655 | -6/Factory | Build established: Scavenger-Skirmisher 10757 | -6/Factory | Identified exit to Garrison 10766 | -6/Factory | Entered Garrison 10859 | -6/Garrison | Garrison Relay disabled 10886 | -6/Garrison | Crushed by falling debris 10917 | -6/Garrison | Lost 5 parts (1p1n3u) 10930 | -6/Garrison | Triggered checkpoint 10932 | -6/Garrison | Core integrity fell below 50% 10982 | -6/Garrison | Lost 3 parts (1n2w) 11075 | -6/Garrison | Crushed by falling debris 11076 | -6/Garrison | Self-destructed Last Messages --------------- 10951_ Imp. Heavy Machine Gun destroyed. 10951_ Cld. Particle Cannon destroyed. 10958_ Acquired Lgt. Treads. 10961_ Y-54 Guardian Lgt. Treads severed. 10969_ System corrupted: Energy discharge (-15). 10971_ Y-54 Guardian destroyed. 10973_ Acquired Imp. Light Armor Plating. 10975_ Acquired Lgt. Treads. 10980_ Acquired 58 matter. 11023_ |JJWVPIXBKBW3&DQNUHKIN 11041_ System corrupted: Matter fused (-6). Garrison Door activated. 11061_ LU-1G1's Laser Shovel disintegrates Wall. 11062_ LU-1G1's Laser Shovel disintegrates Earth. 11068_ LU-1G1's Laser Shovel disintegrates Wall. 11074_ Arm. Huge Wheel destroyed. 11075_ The unstable cave ceiling collapses. 11075_ Crushed by falling debris. 11075_ Mak. Sword destroyed. 11075_ System corrupted by crushing effect (+1). Map ----- +----------------------------------------------------+ | ?????????????????????????????????????????????????? | | ?????????????????????????????????????????????????? | | ?????????????????????????????????????????????????? | | ?????????????????????????????????????????????????? | | ?????????????????????????????????????????????????? | | ????????????????????????? ?????????????????????? | | ????????????????????????? #????????????????????? | | ????????????????????????? #????????????????????? | | ????????????????????????? #????????????????????? | | ????????????????????????? #????????????????????? | | ????????????????????????? s #????????????????????? | | ????????????????????????? #????????????????????? | | ????????????????????????# #????????????????????? | | ????????????????????????# #????????????????????? | | ????????????????????????# #????????????????????? | | ????????????????????????# #????????????????????? | | ????????????????????????# #####??######???"## ?? | | ????????????????????????# ??? ??? ?? | | ????????????????????????# ????? ?? ?? | | ????????????????????????# ??????? ?? ??? | | ????????????????????????#;#????????# #? #??? | | ????????????????????????# #????????# ## ## ? | | ????????????????????????# #????????" ??? | | ????????????????????????# #????????" ????? | | ????????????????????????# #????????" ??????? | | ????????????????????????#@#????????" ????????? | | ????????????????????????###????????# #???? #???? | | ?????????????????????####"########## ## ## ?? | | ?????????????????????# | | ?????????????????????# | | ?????????????????????# | | ?????????????????????# #### ########### ###+# | | ?????????????????????# #??# #??????????????#???? | | ?????????????????????# ^^#??# #??????????????????? | | ?????????????????????# #??# #??????????????????? | | ?????????????????????# #??# #??????????????????? | | ??????????????######## #### #??????????????????? | | ??????????????# #??????????????????? | | ??????????????# ###### ####+#??????????????????? | | ??????????????# ###??# #???????????????????????? | | ??????????????# #??# #???????????????????????? | | ??????????????# #??+ #???????????????????????? | | ??????????????# #?## #???????????????????????? | | ??????????????# ###??# #???????????????????????? | | ??????????????#!#????# #???????????????????????? | | ????????####### #????# #???????????????????????? | | ????????# ##???# #???????????????????????? | | ????????# #???# #???????????????????????? | | ????????# != ##???# #???????????????????????? | | ????????## # ## #????# #???????????????????????? | +----------------------------------------------------+ Best States ------------- Heat Dissipation 56 Energy Generation 18 Energy Capacity 290 Matter Stores 300 Matter Capacity 300 Sight Range 21 Robot Scan Range 16 Terrain Scan Range 20 Terrain Scan Density 10 Jamming Range 12 Armor Coverage 800 Power Shielding 90 Evasion (%) 63 Melee Accuracy 6 Recoil Reduction 2 Matter Filtering 30 Item Schematics ----------------- None Robot Schematics ------------------ None Fabricated ------------ Nothing Alien Tech Used ----------------- None Achievements -------------- None Challenges ------------ None Game ------ Seed SiegeChainPick Manual? 0 Play Time 01:01:12 Cumulative 322.7 hours Start 2024.10.05 @ 18:32:24 End 2024.10.06 @ 18:47:45 Sessions 6 Manual Loads 0 Difficulty Rogue Special Mode None Game No. 155 Rogue 155 Adventurer 0 Explorer 0 Win Type - Total 9 Types 5/1/3/0/0/0/0/0/0 Lore% 81 Gallery% 87 Achievement% 73 Wizard Run 0 Options --------- Layout 0 ASCII 0 Keyboard 0 Movement Mouse Keybinds 0 Fullscreen 2 Font 12/Smallcaps Map View 83x54 Zoom Use 0% Tactical HUD 1 Map Filters NONE Filters NONE Steam 1 RUN: 34df5ac8-466b-459d-b059-48aab6da24fe